bitfinex/quotes_ETHUSD_20260129
["timestamp","ask_amount","ask_price","bid_price","bid_amount"]
[1769651823388,0.92658531,2992.3,2991.4,0.83572909]
[1769651823560,0.92558531,2992.1,2990.9,4.04986785]
[1769651823761,0.92558531,2992.1,2991.2,0.83577809]
[1769651824468,0.92558531,2992.1,2991.3,0.8357558]
[1769651824867,0.92558531,2992.1,2991.2,0.83576645]
[1769651825071,0.92558531,2992.1,2991.3,0.83574667]
[1769651825275,0.92558531,2991.9,2991.0,0.83584085]
[1769651826260,0.92558531,2991.9,2990.9,0.88571572]
[1769651827290,0.92558531,2991.7,2990.9,0.88571572]
[1769651827887,1.76116762,2992.0,2990.9,0.88571572]
[1769651828093,1.76116762,2992.0,2991.0,0.49292795]
[1769651828258,0.83558231,2992.0,2991.0,0.49292795]
[1769651828457,0.92558531,2991.9,2991.0,0.49292795]
[1769651829494,0.83561735,2991.8,2991.0,1.32874799]
[1769651829676,1.76120266,2991.8,2991.0,1.32874799]
[1769651829865,1.76120266,2991.8,2991.1,0.47220733]
[1769651830690,0.92558531,2991.7,2990.8,0.7]
[1769651830870,0.92558531,2991.7,2990.8,1.53589619]
[1769651831193,0.92558531,2991.7,2990.8,0.83589619]
[1769651831588,0.92558531,2991.7,2990.6,0.83593766]
[1769651831788,0.92558531,2991.7,2990.7,4.83591743]
[1769651831995,0.92558531,2991.7,2990.8,0.83589375]
[1769651832371,0.92558531,2991.7,2990.8,0.83588014]
[1769651832686,0.92558531,2991.5,2990.7,1.32448953]
[1769651833080,0.92558531,2991.5,2990.7,1.32450264]
[1769651833281,0.92558531,2992.0,2990.8,0.95983528]
[1769651833481,0.92558531,2992.0,2990.8,1.00970313]
[1769651834404,0.92558531,2992.0,2990.8,0.04986785]
[1769651834701,0.92558531,2991.8,2990.9,0.8358688]
[1769651834878,0.92558531,2991.8,2991.0,0.42292119]
[1769651836997,0.92558531,2991.8,2991.2,0.002]
[1769651837399,0.001,2991.9,2991.2,0.002]
[1769651839176,0.92658531,2991.9,2991.2,0.002]
[1769651840469,0.001,2991.9,2991.2,0.002]
[1769651841683,0.001,2991.9,2991.2,0.96183528]
[1769651841897,0.001,2991.9,2991.4,0.95983528]
[1769651843103,0.001,2991.9,2991.3,0.17976482]
[1769651843410,0.001,2991.9,2991.4,0.83572571]
[1769651844012,0.001,2991.9,2991.4,0.83572841]
[1769651844222,0.001,2991.9,2991.3,0.83573106]
[1769651844524,0.92658531,2991.9,2991.3,0.83573106]
[1769651845304,0.92658531,2991.9,2991.2,0.002]
[1769651845478,0.001,2991.9,2991.2,0.002]
[1769651845896,0.001,2991.9,2991.3,0.18214225]
[1769651846288,0.001,2991.9,2991.3,1.16575188]
[1769651846497,0.001,2991.9,2991.3,0.18214225]
[1769651846697,0.001,2991.9,2991.2,0.002]
[1769651847406,0.9186172,2991.8,2991.2,0.002]
[1769651847608,0.001,2991.9,2991.0,0.002]
[1769651847609,0.9186172,2991.4,2991.0,0.002]
[1769651847810,0.9186172,2991.4,2990.4,4.0]
[1769651848011,0.9186172,2991.4,2990.5,1.5890329]
[1769651849518,0.9062705,2991.2,2990.5,1.5890329]
[1769651852004,1.74205677,2991.2,2990.5,0.75307056]
[1769651852315,0.9062705,2991.1,2990.3,0.002]
[1769651852615,0.9062705,2991.1,2990.3,0.83803542]
[1769651852802,0.9062705,2991.1,2990.3,0.002]
[1769651853722,0.9062705,2991.0,2990.3,0.83803385]
[1769651854503,1.74204127,2991.3,2990.3,1.26123878]
[1769651857007,0.9062705,2991.2,2990.3,1.26123878]
[1769651858117,1.74206273,2991.2,2990.3,1.26123878]
[1769651858418,0.9062705,2991.2,2990.3,1.26123878]
[1769651858609,0.9062705,2991.6,2990.4,0.96326028]
[1769651858807,0.001,2991.7,2990.6,0.96326028]
[1769651860014,0.001,2991.7,2990.7,1.74931712]
[1769651862130,0.001,2992.3,2991.3,0.91339243]
[1769651862314,0.001,2992.3,2991.4,0.96326028]
[1769651863320,1.74275697,2992.3,2991.4,0.04986785]
[1769651863530,0.9072705,2992.3,2991.4,0.04986785]
[1769651863918,1.74275288,2992.3,2991.4,4.04986785]
[1769651864090,0.9072705,2992.3,2991.6,0.83567321]
[1769651864294,0.001,2992.3,2991.6,0.83567321]
[1769651866430,0.9072705,2992.3,2991.6,0.83567321]
[1769651869132,1.74275033,2992.3,2991.6,0.83567321]
[1769651869335,1.74275033,2992.3,2991.5,1.33200816]
[1769651869547,1.74275033,2992.3,2991.6,0.86749044]
[1769651870335,0.9072705,2992.3,2991.6,1.70314083]
[1769651871037,1.74275076,2992.3,2991.6,1.70314083]
[1769651871445,0.9062705,2992.2,2991.5,0.49632603]
[1769651871604,0.9062705,2992.2,2991.4,4.83572744]
[1769651871804,0.9062705,2992.2,2991.4,0.83572744]
[1769651872538,0.9062705,2992.1,2991.5,0.83569261]
[1769651873354,1.08054862,2992.1,2991.1,4.63579788]
[1769651874041,0.9062705,2991.8,2990.8,0.83587866]
[1769651874222,0.9062705,2991.8,2991.0,4.0]
[1769651874422,0.9062705,2991.6,2991.0,4.0]
[1769651874649,0.9062705,2991.6,2991.0,4.83583644]
[1769651875162,1.78163439,2991.7,2991.0,5.65376828]
[1769651875347,4.28831236,2992.0,2991.0,5.65376828]
[1769651875526,0.94598911,2991.9,2991.0,1.65376828]
[1769651875728,0.94598911,2991.9,2991.4,0.002]
[1769651876046,0.94598911,2991.8,2991.4,0.002]
[1769651876555,0.94598911,2991.6,2991.1,0.002]
[1769651878232,0.94598911,2991.6,2990.7,0.83590573]
[1769651878455,3.34251071,2991.8,2990.6,0.8359345]
[1769651878456,0.94598911,2991.4,2990.6,0.8359345]
[1769651878656,1.12415814,2991.3,2990.5,0.83795948]
[1769651878861,0.001,2992.3,2991.3,0.99590225]
[1769651879029,0.94598911,2993.0,2991.5,6.04094104]
[1769651879030,0.94598911,2992.8,2991.5,6.04094104]
[1769651879356,0.94598911,2992.6,2991.6,15.25853896]
[1769651879761,0.94598911,2992.6,2991.6,19.25853896]
[1769651879964,0.94598911,2992.4,2991.6,0.75853896]
[1769651880278,0.94598911,2992.4,2991.2,0.04986785]
[1769651880563,0.94598911,2992.4,2991.3,14.5]
[1769651880762,0.94598911,2992.3,2991.4,4.83572909]
[1769651880966,0.94598911,2992.3,2991.4,0.83572909]
[1769651881169,0.94598911,2992.3,2991.4,0.42285415]
[1769651881470,0.94598911,2991.8,2990.9,3.34346847]
[1769651881659,0.94598911,2991.8,2991.1,0.83581267]
[1769651881980,0.83546848,2992.4,2990.8,0.04986785]
[1769651881981,1.64598911,2992.1,2991.3,0.83575561]
[1769651882130,0.94598911,2992.0,2991.1,0.83579821]
[1769651882864,0.94598911,2991.8,2990.7,0.83592469]
[1769651883066,0.94598911,2991.8,2990.8,4.0]
[1769651883433,0.94598911,2991.8,2990.8,4.04986785]
[1769651883635,0.7,2992.0,2991.0,0.99590225]
[1769651884264,0.94598911,2991.9,2990.9,0.48857925]
[1769651885137,0.94598911,2991.9,2991.0,0.83584085]
[1769651885534,1.64598911,2991.9,2991.0,0.83584085]
[1769651885737,1.64598911,2991.9,2991.1,0.46677835]
[1769651886676,0.94598911,2991.8,2990.9,1.32442725]
[1769651886971,0.94598911,2991.8,2990.9,0.835848]
[1769651887171,1.78161929,2991.8,2990.9,0.835848]
[1769651888482,1.78161929,2991.8,2991.1,0.002]
[1769651888974,0.94598911,2991.7,2991.1,0.002]
[1769651889283,0.94598911,2991.6,2991.1,0.002]
[1769651891046,1.64598911,2991.6,2991.1,0.002]
[1769651893284,2.48166994,2991.6,2991.1,0.002]
[1769651893582,0.94598911,2991.5,2991.1,0.002]
[1769651896575,0.7,2991.6,2991.1,0.002]
[1769651897758,0.94598911,2991.9,2991.1,0.002]
[1769651897963,1.64598911,2991.9,2991.1,0.002]
[1769651898374,0.94598911,2991.9,2991.1,0.002]
[1769651898586,1.78158496,2991.9,2991.1,0.002]
[1769651899266,0.94598911,2991.9,2991.1,0.002]
[1769651899667,1.78157909,2991.9,2991.1,0.002]
[1769651900075,0.94598911,2991.8,2991.1,0.002]
[1769651900380,0.94598911,2991.7,2991.1,0.002]
[1769651900572,0.001,2992.1,2991.3,0.99590225]
[1769651900874,0.001,2992.1,2991.5,0.99590225]
[1769651901089,0.001,2992.1,2991.6,1.63316313]
[1769651902778,0.001,2992.1,2991.7,0.83564528]
[1769651906802,0.82033533,2992.7,2991.7,1.81660802]
[1769651907323,0.98616423,2992.6,2991.7,0.83564528]
[1769651907475,0.98616423,2992.6,2991.7,1.41678423]
[1769651909808,1.8215633,2992.6,2992.0,0.396]
[1769651909981,0.98616423,2992.6,2992.0,0.396]
[1769651910388,0.98616423,2992.6,2992.0,1.23155473]
[1769651910815,0.90860796,2992.8,2992.0,1.23155473]
[1769651911020,0.57850816,2992.8,2992.0,1.23155473]
[1769651911319,1.74394394,2992.9,2992.0,1.23155473]
[1769651911822,0.90860796,2992.8,2992.0,1.23155473]
[1769651912424,0.90860796,2992.8,2992.0,0.396]
[1769651913695,0.90860796,2992.5,2992.0,0.396]
[1769651918106,0.90860796,2992.4,2992.0,0.396]
[1769651918831,0.90860796,2992.3,2991.5,0.83568167]
[1769651919027,0.90860796,2992.3,2991.3,0.83773737]
[1769651919328,0.90860796,2992.3,2991.3,4.83775576]
[1769651919492,0.90860796,2992.1,2991.3,4.83775576]
[1769651919697,1.60860796,2992.1,2991.5,0.83569689]
[1769651919898,0.17440624,2992.2,2991.6,0.83567029]
[1769651920109,0.7,2992.2,2991.5,0.83567996]
[1769651920331,1.60860796,2992.2,2991.5,0.83567996]
[1769651920533,2.44412759,2992.2,2991.4,3.34288934]
[1769651920734,1.74411541,2992.2,2991.4,3.34288934]
[1769651921033,1.74411541,2992.2,2991.4,0.83572909]
[1769651921329,0.90860796,2992.1,2991.4,0.83572909]
[1769651922426,1.53539397,2992.6,2991.5,0.94082023]
[1769651922725,0.90860796,2992.5,2991.6,0.83567321]
[1769651922930,0.90860796,2992.4,2991.6,0.83567321]
[1769651923231,0.90860796,2992.4,2991.3,0.002]
[1769651923425,0.90860796,2992.4,2991.5,0.83569985]
[1769651924124,0.90860796,2992.4,2991.4,0.83571042]
[1769651924323,0.90860796,2992.4,2991.3,0.837734]
[1769651924531,0.90860796,2992.4,2991.3,1.25602024]
[1769651924727,0.90860796,2992.2,2991.3,0.42028624]
[1769651925031,0.90860796,2992.2,2991.3,1.25603498]
[1769651926803,0.83553357,2992.1,2991.5,0.002]
[1769651927130,0.90860796,2992.0,2991.5,0.002]
[1769651928936,1.74416975,2992.0,2991.5,0.002]
[1769651929306,0.7,2992.0,2991.5,0.002]
[1769651931620,2.44417285,2992.0,2991.5,0.002]
[1769651931820,1.60860796,2992.0,2991.5,0.002]
[1769651933445,1.60860796,2992.0,2991.5,0.00033008]
[1769651933655,0.7,2992.0,2991.5,0.00033008]
[1769651934013,0.7,2992.0,2991.5,1.16086884]
[1769651934577,0.7,2992.2,2991.5,1.16086884]
[1769651935050,1.60860796,2992.2,2991.5,0.22004861]
[1769651935646,2.44411719,2992.2,2991.5,1.05572789]
[1769651936461,1.53550923,2992.2,2991.5,1.05572789]
[1769651937125,0.83550923,2992.2,2991.5,1.05572789]
[1769651937329,0.7,2992.2,2991.5,1.05572789]
[1769651938058,0.83639397,2992.7,2991.6,1.53750413]
[1769651938263,0.7,2992.2,2991.7,0.99785464]
[1769651938649,0.7,2992.3,2991.7,0.99785464]
[1769651939964,0.7,2992.3,2991.7,0.99985464]
[1769651940162,1.53544222,2992.5,2991.7,2.09500589]
[1769651940361,0.96856989,2992.2,2991.7,0.2615232]
[1769651940666,0.96856989,2992.2,2991.7,0.002]
[1769651942033,0.83638418,2992.7,2991.7,0.002]
[1769651942034,0.7,2992.1,2991.7,0.002]
[1769651942230,0.83539397,2992.6,2991.7,0.99985464]
[1769651942469,1.53638036,2992.7,2991.9,0.99785464]
[1769651942656,1.53638036,2992.7,2991.9,1.70190031]
[1769651942964,0.701,2992.7,2991.9,0.70404567]
[1769651943267,0.7,2992.6,2991.9,0.70404567]
[1769651943567,0.001,2992.7,2991.9,0.70404567]
[1769651943764,0.7,2992.6,2991.7,0.99985464]
[1769651944364,1.5353958,2992.6,2991.8,0.83561735]
[1769651944593,1.5353958,2992.6,2991.8,1.83347199]
[1769651944763,0.7,2992.6,2991.8,1.83347199]
[1769651944936,0.83539756,2992.6,2991.8,1.83347199]
[1769651945133,1.53638157,2992.7,2991.9,0.51779552]
[1769651945333,0.001,2992.7,2991.9,0.51779552]
[1769651945534,0.001,2992.7,2991.9,1.51565016]
[1769651946164,0.001,2992.7,2991.9,0.51779552]
[1769651946165,1.80493886,2992.7,2991.9,0.51779552]
[1769651946472,0.83636897,2992.7,2992.0,0.83556149]
[1769651946878,0.001,2992.7,2992.0,0.83556149]
[1769651947483,0.96956989,2992.7,2992.0,0.83556149]
[1769651947710,0.001,2992.7,2992.0,2.25120742]
[1769651947982,0.001,2992.7,2992.0,1.25335278]
[1769651951074,0.96956989,2992.7,2991.8,0.83560378]
[1769651951385,0.96856989,2992.6,2991.7,0.8376257]
[1769651952159,0.96856989,2992.6,2992.0,0.002]
[1769651952360,0.96956989,2992.5,2992.0,0.002]
[1769651952561,0.96956989,2992.5,2991.8,0.002]
[1769651952990,0.96856989,2992.3,2991.5,0.00033008]
[1769651953292,0.96856989,2992.1,2991.5,0.00033008]
[1769651954399,0.96856989,2992.3,2991.5,0.00033008]
[1769651955461,1.80407467,2992.3,2991.5,0.83603123]
[1769651956680,0.96856989,2992.2,2991.5,0.83603123]
[1769651957392,0.96856989,2992.2,2991.5,0.00033008]
[1769651957595,1.01596412,2992.1,2991.5,0.00033008]
[1769651960270,1.98453401,2992.1,2991.5,0.00033008]
[1769651962195,0.83558942,2991.9,2991.5,0.00033008]
[1769651962394,1.80415931,2991.9,2991.3,0.002]
[1769651963071,0.96856989,2991.8,2991.3,0.002]
[1769651963290,0.18041593,2991.7,2991.3,0.002]
[1769651966178,0.83660225,2991.9,2991.3,0.002]
[1769651966593,0.83660225,2991.9,2991.3,0.99796938]
[1769651966594,0.001,2991.9,2991.3,0.99796938]
[1769651966766,0.001,2991.9,2991.3,0.002]
[1769651967868,0.001,2991.9,2991.3,0.83775702]
[1769651969169,0.001,2991.9,2991.3,0.002]
[1769651971204,0.001,2991.9,2991.3,1.48659659]
[1769651972001,0.001,2991.9,2991.4,0.83572909]
[1769651979378,0.93634342,2992.4,2991.5,0.96936641]
[1769651979682,1.63634342,2992.4,2991.5,0.96936641]
[1769651982309,1.63634342,2992.4,2991.6,0.83567321]
[1769651982510,1.63634342,2992.4,2991.7,0.51477325]
[1769651982694,0.93634342,2992.3,2991.7,0.51477325]
[1769651985186,0.93634342,2992.3,2991.3,1.48659659]
[1769651985187,6.97720335,2992.0,2991.3,0.83775478]
[1769651985386,6.97720335,2992.0,2991.3,0.002]
[1769651985387,0.93634342,2992.0,2991.3,0.002]
[1769651987217,0.83558942,2991.9,2991.3,0.002]
[1769651988518,0.83558942,2991.9,2991.5,0.002]
[1769651988723,1.34700871,2991.9,2991.5,0.002]
[1769651988902,0.001,2991.8,2991.5,0.002]
[1769652000548,7.01943623,2991.7,2991.3,0.002]
[1769652000831,0.9785763,2991.6,2991.1,0.002]
[1769652001131,1.68061992,2991.6,2991.1,0.002]
[1769652001845,0.001,2991.6,2991.2,0.99531611]
[1769652002006,0.001,2991.6,2991.2,1.83108771]
[1769652002338,0.001,2991.6,2991.3,0.99531611]
[1769652002838,0.001,2991.6,2991.1,1.83311547]
[1769652003148,0.001,2991.6,2991.1,1.83310962]
[1769652003315,0.001,2991.6,2991.2,0.51784557]
[1769652003500,0.001,2991.6,2991.2,1.51316168]
[1769652003837,0.001,2991.6,2991.2,0.99531611]
[1769652004133,0.001,2991.6,2991.1,0.002]
[1769652004322,0.001,2991.6,2991.1,0.99731611]
[1769652005113,0.001,2991.6,2991.1,0.002]
[1769652006219,0.001,2991.6,2991.2,0.99531611]
[1769652006537,0.001,2991.6,2991.3,0.99531611]
[1769652007020,0.001,2991.6,2991.2,0.83576214]
[1769652007225,0.001,2991.6,2991.3,0.99531611]
[1769652008132,0.001,2991.6,2991.1,1.83311113]
[1769652009533,0.001,2991.6,2991.1,0.002]
[1769652010105,7.01943623,2991.3,2990.6,0.002]
[1769652010422,0.70194362,2991.2,2990.8,0.99531611]
[1769652010601,7.02043623,2991.6,2990.6,1.83324897]
[1769652010806,0.9785763,2991.5,2990.6,0.002]
[1769652011448,0.9785763,2990.7,2990.3,0.002]
[1769652011608,6.22914872,2990.6,2989.9,4.002]
[1769652011953,6.22914872,2990.6,2989.7,0.002]
[1769652011954,6.04770141,2990.3,2989.7,0.002]
[1769652012113,7.02627771,2990.3,2989.7,0.002]
[1769652012539,7.02627771,2990.3,2989.7,4.002]
[1769652012836,7.72890548,2990.3,2989.7,0.002]
[1769652013223,6.75032918,2990.3,2989.7,0.002]
[1769652013422,6.75032918,2990.3,2989.9,0.002]
[1769652013622,0.83606447,2990.2,2989.9,0.002]
[1769652014730,1.53868381,2990.3,2989.9,0.002]
[1769652014940,0.8359806,2990.5,2989.9,0.99731611]
[1769652015141,10.36982694,2990.9,2989.9,0.99731611]
[1769652015142,3.3434414,2991.0,2989.9,0.99731611]
[1769652015346,0.7,2990.9,2989.9,0.99731611]
[1769652015649,0.83589675,2990.8,2990.0,0.99531611]
[1769652015939,10.36916503,2991.5,2990.0,1.17866047]
[1769652016141,1.53575702,2991.3,2990.0,1.17866047]
[1769652016824,0.83575702,2991.3,2990.0,1.17866047]
[1769652017021,0.83575702,2991.3,2990.3,0.99531611]
[1769652018042,1.53674981,2991.4,2990.5,0.99531611]
[1769652018248,1.53673782,2991.4,2990.5,1.17844858]
[1769652020741,6.04770141,2991.2,2990.2,3.34418022]
[1769652020946,6.04770141,2991.2,2990.4,0.99531611]
[1769652021617,6.04770141,2991.2,2990.2,1.83136129]
[1769652021817,6.74770141,2991.2,2990.2,0.99531611]
[1769652022128,0.67477014,2991.1,2990.2,0.99531611]
[1769652022321,0.67477014,2991.1,2990.3,0.99531611]
[1769652022544,0.67477014,2991.1,2990.3,1.83135164]
[1769652022744,6.74770141,2991.2,2990.5,0.99531611]
[1769652022745,0.83579843,2991.2,2990.5,0.99531611]
[1769652022944,1.53577421,2991.3,2990.5,0.99531611]
[1769652023250,0.83577421,2991.3,2990.6,0.99531611]
[1769652023764,0.001,2991.4,2990.7,6.04770141]
[1769652023935,0.001,2991.4,2990.8,0.99531611]
[1769652024122,0.001,2991.4,2991.0,0.99531611]
[1769652025365,0.001,2991.4,2991.0,1.83115562]
[1769652025520,0.001,2991.6,2991.2,0.91914324]
[1769652027053,0.8364422,2992.5,2991.4,0.91914324]
[1769652027229,0.8364422,2992.5,2991.8,0.91914324]
[1769652027230,0.001,2992.5,2991.8,0.91914324]
[1769652027550,0.83642865,2992.5,2991.8,0.91914324]
[1769652027846,0.001,2992.5,2991.8,0.91914324]
[1769652029252,0.001,2992.5,2991.9,1.81196619]
[1769652029928,0.001,2992.5,2992.0,0.97637677]
[1769652031766,0.001,2992.5,2991.7,0.83564392]
[1769652031940,0.001,2992.5,2991.6,0.97637677]
[1769652032148,0.001,2992.5,2991.7,0.83564257]
[1769652032648,0.001,2992.5,2991.7,0.97637677]
[1769652032845,0.001,2992.5,2991.7,1.81201933]
[1769652034348,0.001,2992.5,2991.7,0.97637677]
[1769652034548,0.51811164,2992.5,2991.7,0.97637677]
[1769652034974,0.51811164,2992.5,2991.7,1.81201865]
[1769652035270,0.51811164,2992.5,2991.8,0.97637677]
[1769652036068,0.001,2992.5,2991.8,0.97637677]
[1769652036266,0.001,2992.5,2992.0,0.97637677]
[1769652037869,0.001,2992.3,2992.0,0.97637677]
[1769652038443,0.001,2992.3,2992.0,0.83553905]
[1769652038641,0.001,2992.3,2992.1,0.97637677]
[1769652039173,0.8351428,2993.5,2992.2,0.97637677]
[1769652039347,1.82728939,2993.5,2992.2,0.97637677]
[1769652039540,0.99214659,2993.4,2992.2,0.97637677]
[1769652040441,1.8273452,2993.3,2992.3,0.83547772]
[1769652040641,0.51681396,2993.2,2992.3,0.83547772]
[1769652041748,0.83519171,2993.4,2992.4,0.97637677]
[1769652041966,0.83516295,2993.5,2992.4,0.97637677]
[1769652042363,0.83613033,2993.6,2992.4,0.97637677]
[1769652042545,0.001,2993.6,2992.6,0.97637677]
[1769652043437,0.99314659,2993.6,2992.2,0.97637677]
[1769652043766,0.99314659,2993.6,2992.3,0.83546997]
[1769652043971,0.99314659,2993.6,2992.2,2.26183402]
[1769652044174,0.99314659,2993.6,2992.4,0.83544835]
[1769652044367,0.99314659,2993.6,2992.4,0.83544619]
[1769652044580,0.8351428,2993.5,2992.3,0.83546216]
[1769652044746,1.50903265,2993.4,2992.3,0.83546216]
[1769652045874,1.50903265,2993.4,2992.3,1.81183893]
[1769652047045,0.83519861,2993.3,2992.3,1.81183893]
[1769652047659,1.8273452,2993.3,2992.3,1.81183893]
[1769652047945,0.83519861,2993.3,2992.4,0.97637677]
[1769652048145,0.56850257,2993.2,2992.2,2.26183093]
[1769652048757,0.56850257,2993.2,2992.3,0.97637677]
[1769652049158,0.83525441,2993.1,2992.3,0.97637677]
[1769652050052,1.40474807,2993.2,2992.4,0.97637677]
[1769652051653,1.40474807,2993.2,2992.4,1.81181372]
[1769652051993,0.001,2993.2,2992.5,0.97637677]
[1769652052682,0.99214659,2993.0,2991.8,0.97637677]
[1769652053056,0.99214659,2993.0,2991.6,0.97637677]
[1769652053263,0.83531023,2992.9,2991.6,0.97637677]
[1769652053559,0.99214659,2992.8,2991.6,0.97637677]
[1769652053764,1.17489227,2992.7,2991.6,1.99325566]
[1769652054172,1.17489227,2992.7,2991.7,0.97637677]
[1769652055193,1.17489227,2992.7,2991.6,0.18120772]
[1769652055366,0.90645493,2992.5,2991.4,1.74329454]
[1769652055682,0.90645493,2992.5,2991.5,0.90756671]
[1769652058084,0.8354498,2992.4,2991.5,1.74326765]
[1769652058490,0.8354498,2992.4,2991.5,0.90756671]
[1769652060368,0.8354498,2992.4,2991.6,0.90756671]
[1769652060564,0.8354498,2992.4,2991.6,0.50861784]
[1769652060900,0.8354498,2992.4,2991.7,0.90956671]
[1769652061697,0.8354498,2992.4,2991.7,0.002]
[1769652062500,3.34179922,2992.5,2991.7,0.002]
[1769652062688,4.24825415,2992.5,2991.7,0.002]
[1769652063404,0.90645493,2992.4,2991.1,0.90756671]
[1769652063579,0.90645493,2992.4,2991.0,0.90756671]
[1769652063580,0.90645493,2992.3,2991.0,0.90756671]
[1769652064322,0.2335703,2992.2,2990.8,0.002]
[1769652064598,0.2335703,2992.2,2990.5,0.002]
[1769652064599,0.2335703,2991.8,2990.5,0.002]
[1769652064767,0.2335703,2991.5,2990.5,0.90956671]
[1769652064967,0.90645493,2991.4,2990.5,0.002]
[1769652065201,0.90645493,2991.4,2990.3,1e-08]
[1769652065401,0.90645493,2991.2,2990.3,1e-08]
[1769652065697,0.90645493,2991.0,2990.3,1e-08]
[1769652066402,0.8358688,2990.9,2990.3,1e-08]
[1769652066581,0.50857989,2990.8,2990.3,1e-08]
[1769652067684,1.20857989,2990.8,2990.3,1e-08]
[1769652067882,0.83572909,2991.4,2990.3,0.90756672]
[1769652068085,0.7,2991.3,2990.3,0.90756672]
[1769652068283,0.90645493,2991.2,2990.3,1e-08]
[1769652068574,1.74226784,2991.1,2990.3,1e-08]
[1769652069206,0.90645493,2991.0,2989.9,0.002]
[1769652069412,0.90645493,2990.6,2989.1,0.90956671]
[1769652069730,0.2335703,2990.8,2989.7,0.90756671]
[1769652070001,0.50855195,2991.0,2990.0,0.90756671]
[1769652070178,0.50855195,2991.0,2990.0,1.08193833]
[1769652070381,0.90645493,2991.7,2990.0,1.08193833]
[1769652070592,0.90645493,2992.2,2990.4,0.90756671]
[1769652070801,0.42484296,2992.1,2990.6,0.90756671]
[1769652071179,1.33129789,2992.1,2990.6,0.90756671]
[1769652071499,0.42484296,2992.1,2990.6,0.90756671]
[1769652071700,3.34197465,2992.3,2990.6,0.90756671]
[1769652072602,3.34197465,2992.3,2990.8,0.90756671]
[1769652072802,4.24842958,2992.3,2990.8,0.90756671]
[1769652073005,0.90645493,2992.2,2990.8,0.90756671]
[1769652073376,0.001,2991.4,2990.8,0.90756671]
[1769652073581,0.001,2991.4,2991.0,0.90756671]
[1769652074211,0.001,2991.4,2990.9,0.17434914]
[1769652074782,0.001,2991.4,2990.9,1.08191585]
[1769652077126,0.001,2991.4,2991.0,0.90756671]
[1769652078734,0.001,2991.4,2990.9,1.01020775]
[1769652078896,0.001,2991.4,2990.9,1.08191585]
[1769652079097,0.001,2991.4,2990.9,1.91778348]
[1769652080290,0.001,2991.4,2991.0,1.09934506]
[1769652080492,0.83558942,2991.9,2991.1,0.90756671]
[1769652081225,1.74204435,2991.9,2990.9,0.17434914]
[1769652081412,0.90645493,2991.8,2990.7,1.7434899]
[1769652081927,0.90645493,2991.8,2990.8,0.90756671]
[1769652082227,0.83567321,2991.6,2990.8,1.74346302]
[1769652082606,1.00985312,2991.7,2990.9,0.90756671]
[1769652082915,0.83564868,2991.7,2990.9,0.90756671]
[1769652084938,0.7,2992.2,2990.9,0.90756671]
[1769652084939,0.83550564,2992.2,2991.0,0.92069406]
[1769652085435,1.82331514,2992.2,2991.1,0.002]
[1769652085626,0.001,2991.5,2991.1,0.002]
[1769652086711,0.001,2991.5,2991.1,0.92269406]
[1769652087036,0.001,2991.5,2991.1,1.75850168]
[1769652087636,0.001,2991.5,2991.1,0.92269406]
[1769652088734,0.001,2991.5,2991.2,0.90573234]
[1769652091205,0.99692496,2991.5,2990.9,0.002]
[1769652093540,0.83572909,2991.4,2990.9,0.002]
[1769652094444,1.83165405,2991.4,2990.9,0.002]
[1769652094643,0.001,2991.5,2991.1,0.90573234]
[1769652094841,0.99592496,2992.5,2991.0,0.90573234]
[1769652095148,0.83539397,2992.6,2991.0,0.90573234]
[1769652095505,0.83539397,2992.6,2991.2,0.90573234]
[1769652095752,0.83533814,2992.8,2991.4,0.90573234]
[1769652097547,0.83633105,2992.9,2991.4,0.90573234]
[1769652097711,0.001,2992.9,2991.7,0.90573234]
[1769652098231,0.001,2992.9,2991.8,0.90573234]
[1769652099150,0.001,2992.9,2991.9,0.90573234]
[1769652099856,0.001,2992.9,2992.1,0.90573234]
[1769652101757,0.001,2992.9,2992.3,0.90573234]
[1769652101937,0.001,2992.9,2992.5,0.90573234]
[1769652104430,0.001,2992.9,2992.5,1.74114869]
[1769652105960,0.001,2992.9,2992.6,0.90573234]
[1769652106264,0.001,2993.2,2992.6,0.90573234]
[1769652107063,0.001,2993.2,2992.8,0.90573234]
[1769652107358,0.001,2993.2,2992.8,1.17041541]
[1769652107558,0.001,2993.2,2992.9,0.90573234]
[1769652109062,0.001,2993.2,2993.0,0.83528232]
[1769652109262,0.001,2993.2,2993.1,0.90573234]
[1769652109663,0.001,2993.6,2993.1,0.90573234]
[1769652109875,0.001,2993.6,2993.3,0.90573234]
[1769652111040,0.001,2994.0,2993.4,1.74090304]
[1769652111241,0.001,2994.0,2993.5,0.90573234]
[1769652113471,0.001,2994.0,2993.6,0.90573234]
[1769652114478,0.83480816,2994.7,2993.6,0.90573234]
[1769652114661,0.83480816,2994.7,2993.7,1.07981809]
[1769652115178,1.77379746,2994.7,2993.7,1.07981809]
[1769652116374,1.77379746,2994.7,2993.7,1.91490357]
[1769652117059,1.77379746,2994.7,2993.8,0.96960002]
[1769652118369,1.77379746,2994.7,2993.8,1.80465762]
[1769652118571,1.77379746,2994.7,2993.9,0.19787434]
[1769652118863,0.9389893,2994.6,2993.9,0.19787434]
[1769652119068,0.9389893,2994.6,2993.7,0.17408575]
[1769652119581,0.9389893,2994.6,2993.1,0.96960002]
[1769652119763,0.9389893,2994.6,2993.3,4.0]
[1769652120079,8.14024269,2994.3,2992.7,1.0]
[1769652120246,0.83494756,2994.2,2992.7,1.0]
[1769652120454,0.83494756,2994.2,2992.8,1.0]
[1769652120856,0.7,2994.1,2992.8,1.0]
[1769652121075,0.7,2994.1,2992.8,0.51769272]
[1769652121277,0.7,2994.1,2992.4,1.0]
[1769652121475,0.7,2994.1,2991.2,3.34503207]
[1769652121476,0.2335703,2994.0,2992.2,1.0]
[1769652121686,7.85319377,2993.8,2992.2,1.0]
[1769652121850,7.85319377,2993.8,2991.5,0.75347862]
[1769652121851,0.2335703,2993.4,2991.6,1.0]
[1769652122055,0.05347862,2993.5,2991.1,0.002]
[1769652122056,0.05347862,2993.1,2991.3,4.0]
[1769652122382,0.05347862,2993.1,2991.3,1.0]
[1769652122383,0.2335703,2992.8,2991.3,1.0]
[1769652122582,0.2335703,2992.8,2991.1,0.002]
[1769652122960,0.2335703,2992.8,2991.1,0.83781061]
[1769652123163,0.2335703,2992.8,2991.1,0.002]